fUSD/lending_fUSD_20240218
["ID","MTS","AMOUNT","RATE_DAILY","PERIOD"]
[314385170,1708252246166,-1000.0,0.00037609,2]
[314385171,1708252246175,-1000.0,0.00037609,2]
[314385172,1708252246185,-1000.0,0.00037609,2]
[314385173,1708252246194,-1000.0,0.00037609,2]
[314385174,1708252246204,-1000.0,0.00037609,2]
[314385175,1708252246214,-1000.0,0.00037609,2]
[314385176,1708252246224,-1000.0,0.00037609,2]
[314385177,1708252246234,-1000.0,0.00037609,2]
[314385178,1708252246243,-1000.0,0.00037609,2]
[314385179,1708252246253,-1000.0,0.00037609,2]
[314385180,1708252246264,-755.2464,0.00037609,2]
[314385181,1708252246274,-500.0,0.00037609,2]
[314385182,1708252246284,-500.0,0.00037609,2]
[314385183,1708252246294,-500.0,0.00037609,2]
[314385184,1708252246303,-500.0,0.00037609,2]
[314385185,1708252246313,-500.0,0.00037609,2]
[314385186,1708252246323,-500.0,0.00037609,2]
[314385187,1708252246332,-500.0,0.00037609,2]
[314385188,1708252246342,-3321.18429848,0.00037627,10]
[314385189,1708252246351,-300.0,0.00037646,2]
[314385190,1708252246362,-150.0,0.00037647,2]
[314385191,1708252246371,-178.0,0.0003765,45]
[314385192,1708252246380,-300.0,0.00037653,2]
[314385193,1708252246389,-303.87,0.0003767,2]
[314385194,1708252246399,-1000.0,0.0003767,2]
[314385195,1708252246408,-666.0,0.00037671,2]
[314385196,1708252246418,-180.0,0.00037671,2]
[314385197,1708252246427,-541.25,0.00037673,2]
[314385198,1708252246436,-18881.90907867,0.00037676,2]
[314385199,1708252246446,-3321.18429848,0.00037695,10]
[314385200,1708252246456,-500.0,0.00037696,2]
[314385201,1708252246466,-500.0,0.00037696,2]
[314385202,1708252246475,-500.0,0.00037696,2]
[314385203,1708252246487,-500.0,0.00037696,2]
[314385204,1708252246496,-500.0,0.00037696,2]
[314385205,1708252246507,-500.0,0.00037696,2]
[314385206,1708252246516,-500.0,0.00037696,2]
[314385207,1708252246527,-500.0,0.00037696,2]
[314385208,1708252246536,-592.68,0.00037696,2]
[314385209,1708252246546,-592.68,0.00037696,2]
[314385210,1708252246555,-592.68,0.00037696,2]
[314385211,1708252246565,-592.68,0.00037696,2]
[314385212,1708252246576,-734.39,0.00037696,2]
[314385213,1708252246585,-734.39,0.00037696,2]
[314385214,1708252246594,-734.39,0.00037696,2]
[314385215,1708252246604,-734.39,0.00037696,2]
[314385216,1708252246614,-734.45796874,0.00037696,2]
[314385217,1708252246623,-1528.09,0.00037696,2]
[314385218,1708252246633,-1528.09,0.00037696,2]
[314385219,1708252246643,-1528.09,0.00037696,2]
[314385220,1708252246652,-1528.09,0.00037696,2]
[314385221,1708252246661,-1528.19295651,0.00037696,2]
[314385222,1708252246671,-500.0,0.00037696,2]
[314385223,1708252246680,-271.75857156,0.00037696,2]
[314385224,1708252246690,-500.0,0.00037696,2]
[314385225,1708252246700,-500.0,0.00037696,2]
[314385226,1708252246709,-500.0,0.00037696,2]
[314385227,1708252246719,-500.0,0.00037696,2]
[314385228,1708252246728,-43551.19536205,0.00037697,2]
[314385229,1708252246738,-200.0,0.000377,12]
[314385230,1708252246747,-351.27,0.000377,2]
[314385231,1708252246757,-295.334352,0.000377,12]
[314385232,1708252246767,-1297.8467194,0.000377,2]
[314385233,1708252246776,-1500.0,0.000377,25]
[314385236,1708252246786,-3654.8836368,0.000377,3]
[314385238,1708252246796,-150.0,0.00037711,2]
[314385240,1708252246805,-20809.7968609,0.00037739,2]
[314385242,1708252246814,-150.0,0.00037741,2]
[314385244,1708252246823,-150.0,0.00037743,2]
[314385246,1708252246832,-177.48,0.00037744,2]
[314385248,1708252246842,-150.0,0.00037749,2]
[314385249,1708252246851,-3321.18429848,0.00037763,11]
[314385252,1708252246860,-151.0,0.0003777,4]
[314385254,1708252246871,-1000.0,0.0003777,2]
[314385256,1708252246880,-150.0,0.00037778,2]
[314385258,1708252246890,-150.0,0.00037784,2]
[314385260,1708252246900,-31762.135296,0.00037785,2]
[314385262,1708252246910,-5947.9781081,0.00037785,2]
[314385264,1708252246919,-2137.564991,0.00037785,2]
[314385266,1708252246929,-150.0,0.00037792,2]
[314385268,1708252246938,-150.0,0.00037792,2]
[314385270,1708252246947,-150.0,0.00037794,2]
[314385272,1708252246957,-500.0,0.00037794,2]
[314385274,1708252246966,-500.0,0.00037794,2]
[314385276,1708252246975,-500.0,0.00037794,2]
[314385278,1708252246985,-500.0,0.00037794,2]
[314385280,1708252246994,-592.68,0.00037794,2]
[314385282,1708252247003,-592.68,0.00037794,2]
[314385284,1708252247014,-500.0,0.00037794,2]
[314385286,1708252247024,-500.0,0.00037794,2]
[314385288,1708252247033,-500.0,0.00037795,2]
[314385290,1708252247042,-500.0,0.00037795,2]
[314385292,1708252247052,-500.0,0.00037795,2]
[314385294,1708252247062,-500.0,0.00037795,2]
[314385296,1708252247071,-592.68,0.00037795,2]
[314385298,1708252247080,-592.68,0.00037795,2]
[314385300,1708252247089,-500.0,0.00037795,2]
[314385302,1708252247098,-500.0,0.00037795,2]
[314385304,1708252247108,-500.0,0.00037796,2]
[314385306,1708252247118,-500.0,0.00037796,2]
[314385308,1708252247127,-592.68,0.00037796,2]
[314385310,1708252247137,-500.0,0.00037796,2]
[314385312,1708252247146,-150.01,0.00037797,2]
[314385314,1708252247155,-3318.4901846,0.00037797,2]
[314385316,1708252247165,-500.0,0.00037799,2]
[314385318,1708252247175,-500.0,0.00037799,2]
[314385320,1708252247184,-500.0,0.00037799,2]
[314385323,1708252247194,-500.0,0.00037799,2]
[314385325,1708252247203,-500.0,0.00037799,2]
[314385327,1708252247212,-500.0,0.00037799,2]
[314385328,1708252247222,-592.68,0.00037799,2]
[314385330,1708252247231,-592.68,0.00037799,2]
[314385332,1708252247240,-592.68,0.00037799,2]
[314385334,1708252247250,-351.46573074,0.00037799,2]
[314385337,1708252247260,-236.44622271,0.000378,3]
[314385339,1708252247270,-162.89096923,0.000378,2]
[314385341,1708252247279,-1932.57655394,0.000378,2]
[314385343,1708252247288,-25810.44000027,0.000378,2]
[314385358,1708252247569,-881.82,0.00037236,2]
[314385359,1708252247579,-881.82,0.00037236,2]
[314385360,1708252247588,-881.82,0.00037236,2]
[314385361,1708252247597,-881.82,0.00037247,2]
[314385362,1708252247606,-557.001,0.00037609,2]
[314385363,1708252247615,-6313.919,0.000378,2]
[314385364,1708252247632,-6773.95211413,0.000378,2]
[314385365,1708252247644,-3127.6447998,0.000378,2]
[314385366,1708252247656,-12553.57951143,0.000378,2]
[314385367,1708252247669,-4010.4279804,0.000378,2]
[314385368,1708252247681,-11443.0514852,0.000378,2]
[314385369,1708252247775,-7770.88927147,0.000378,2]
[314385370,1708252247979,-631.96924,0.00034798,4]
[314385371,1708252247991,-10255.40076954,0.00034798,4]
[314385372,1708252248001,-1861.93225657,0.00035327,4]
[314385373,1708252248010,-3000.0,0.00037187,2]
[314385374,1708252248020,-881.82,0.00037247,2]
[314385375,1708252248029,-881.82,0.00037346,2]
[314385376,1708252248039,-881.82,0.00037399,2]
[314385377,1708252248048,-881.82,0.00037608,2]
[314385378,1708252248058,-881.82,0.00037608,2]
[314385379,1708252248067,-881.82,0.00037608,2]
[314385380,1708252248077,-881.82,0.00037608,2]
[314385381,1708252248086,-881.83232135,0.00037608,2]
[314385382,1708252248096,-34458.49423843,0.000378,2]
[314385383,1708252248290,-2790.83797264,0.000378,2]
[314385384,1708253037803,10000.0,0.00025,10]
[314385385,1708253076974,10000.0,0.000286,120]
[314385386,1708253081916,550.0,0.00025,3]
[314385388,1708253359106,-248.79715069,0.00026998,2]
[314385389,1708253359125,-2152.79175909,0.00026999,2]
[314385390,1708253359145,-600.0,0.00027,3]
[314385391,1708253359166,-286.55189022,0.00029,3]
[314385394,1708253431915,-363.44810978,0.00029,3]
[314385395,1708253431926,-153.19978267,0.000299,2]
[314385396,1708253431936,-1648.52149668,0.0003,2]
[314385397,1708253431953,-1351.47850332,0.0003,2]
[314385398,1708253431965,-1286.05616372,0.0003,4]
[314385399,1708253432026,-575.87609285,0.0003,4]
[314385400,1708253432039,-153.1997826,0.0003068,2]
[314385401,1708253432051,-153.1997826,0.0003146,2]
[314385402,1708253432061,-155.0,0.00031898,4]
[314385403,1708253432073,-400.0,0.00031899,3]
[314385404,1708253432084,-1500.0,0.000319,2]
[314385405,1708253432095,-153.1997826,0.00032239,2]
[314385406,1708253432106,-490.15300562,0.00032781,4]
[314385407,1708253432118,-353.48965634,0.00032899,2]
[314385408,1708253432133,-1282.25034366,0.00032899,2]
[314385409,1708253432143,-311.58,0.000329,2]
[314385410,1708253432155,-6028.05257845,0.000329,2]
[314385411,1708253432166,-153.1997826,0.00033019,2]
[314385412,1708253432178,-153.1997826,0.00033799,2]
[314385413,1708253432190,-881.00770292,0.00033815,4]
[314385414,1708253432201,-499.13,0.00033816,2]
[314385415,1708253432213,-150.0,0.00034548,10]
[314385416,1708253432224,-153.1997826,0.00034579,2]
[314385417,1708253432236,-499.99,0.00034696,2]
[314385418,1708253432246,-9072.80834128,0.00034795,4]
[314385419,1708253432256,-438.148411,0.000348,2]
[314385420,1708253432266,-300.35750065,0.00035,4]
[314385421,1708253432276,-155.0,0.00035,4]
[314385422,1708253432285,-2854.32,0.00035,2]
[314385423,1708253432295,-250.0,0.00035054,2]
[314385424,1708253432305,-381.15,0.00035111,2]
[314385425,1708253432317,-155.55,0.00035167,2]
[314385426,1708253432328,-16469.0,0.000352,2]
[314385427,1708253432338,-207.0,0.00035222,2]
[314385428,1708253432349,-520.0,0.00035225,2]
[314385429,1708253432360,-2000.0,0.00035301,2]
[314385430,1708253432373,-165.81,0.00035311,2]
[314385431,1708253432383,-155.55,0.0003537,2]
[314385432,1708253432394,-519.02,0.0003544,2]
[314385433,1708253432404,-373.23,0.0003544,2]
[314385434,1708253432414,-155.55,0.00035574,2]
[314385435,1708253432424,-500.0,0.00035616,2]
[314385436,1708253432435,-500.0,0.00035616,2]
[314385437,1708253432445,-500.0,0.00035616,2]
[314385438,1708253432456,-500.0,0.00035616,2]
[314385439,1708253432466,-500.0,0.00035616,2]
[314385440,1708253432476,-500.0,0.00035616,2]
[314385441,1708253432486,-333.36335268,0.00035616,2]
[314385442,1708253432496,-173.1,0.00035647,2]
[314385443,1708253432506,-225.66,0.00035651,2]
[314385444,1708253432515,-169.36,0.00035722,2]
[314385445,1708253432526,-480.0,0.00035723,2]
[314385446,1708253432536,-166.53,0.00035727,2]
[314385447,1708253432546,-7912.08,0.00035775,2]
[314385448,1708253432556,-155.55,0.00035778,2]
[314385449,1708253432566,-657.222616,0.000358,2]
[314385450,1708253432576,-174.74,0.00035821,120]
[314385451,1708253432587,-449.60595149,0.00035859,2]
[314385452,1708253432598,-500.0,0.00035859,2]
[314385453,1708253432608,-500.0,0.00035859,2]
[314385454,1708253432618,-155.55,0.00035981,2]
[314385455,1708253432629,-10000.0,0.00036,3]
[314385456,1708253432640,-1500.0,0.00036,4]
[314385457,1708253432650,-499.13,0.0003608,2]
[314385458,1708253432660,-155.55,0.00036185,2]
[314385459,1708253432670,-1166.33,0.00036248,2]
[314385460,1708253432681,-151.94,0.00036288,2]
[314385461,1708253432691,-155.55,0.00036389,2]
[314385462,1708253432701,-155.55,0.00036592,2]
[314385463,1708253432711,-151.94,0.00036692,2]
[314385464,1708253432721,-373.23,0.00036752,2]
[314385465,1708253432732,-381.15,0.00036755,2]
[314385466,1708253432742,-155.55,0.00036796,2]
[314385467,1708253432753,-876.296822,0.000368,2]
[314385468,1708253432763,-155.0,0.000368,2]
[314385469,1708253432773,-177.48,0.000368,2]
[314385470,1708253432784,-152.3142153,0.00036878,2]
[314385471,1708253432795,-500.0,0.00036976,2]
[314385472,1708253432807,-500.0,0.00036976,2]
[314385473,1708253432818,-155.55,0.00036999,2]
[314385474,1708253432828,-2000.0,0.00037,2]
[314385475,1708253432838,-963.44838393,0.00037,4]
[314385476,1708253432849,-2000.0,0.00037,6]
[314385477,1708253432860,-150.0,0.00037012,7]
[314385478,1708253432870,-156.14,0.00037026,3]
[314385479,1708253432880,-164.45,0.00037066,2]
[314385480,1708253432894,-151.94,0.00037095,2]
[314385481,1708253432904,-582.61268221,0.00037122,2]
[314385482,1708253432914,-582.61268221,0.00037122,2]
[314385483,1708253432924,-582.61268221,0.00037122,2]
[314385484,1708253432934,-582.61268221,0.00037122,2]
[314385485,1708253432948,-582.61268221,0.00037122,2]
[314385486,1708253432959,-582.61268221,0.00037122,2]
[314385487,1708253432969,-582.61268221,0.00037122,2]
[314385488,1708253432979,-582.61268221,0.00037122,2]
[314385489,1708253432989,-582.61268221,0.00037122,2]
[314385490,1708253432999,-582.61268221,0.00037122,2]
[314385491,1708253433009,-582.61268221,0.00037122,2]
[314385492,1708253433019,-582.61268221,0.00037122,2]
[314385493,1708253433030,-582.61268221,0.00037122,2]
[314385494,1708253433040,-582.61268221,0.00037122,2]
[314385495,1708253433050,-582.61268221,0.00037122,2]
[314385496,1708253433060,-33759.05802244,0.00037132,2]
[314385497,1708253433079,-10273.1773024,0.00037132,2]
[314385498,1708253433101,-1233.23714017,0.00037132,2]
[314385503,1708253437932,-153.1997826,0.00035359,2]
[314385504,1708253437942,-153.1997826,0.00036138,2]
[314385505,1708253437951,-1365.8676148,0.00037132,2]
[314385506,1708253437985,-1653.13742019,0.00037132,2]
[314385507,1708253437995,-582.61268221,0.00037176,2]
[314385508,1708253438004,-582.61268221,0.00037176,2]
[314385509,1708253438013,-150.0,0.00037186,2]
[314385510,1708253438022,-300.0,0.00037186,7]
[314385511,1708253438031,-450.0,0.00037186,12]
[314385512,1708253438041,-600.0,0.00037186,17]
[314385513,1708253438049,-750.0,0.00037186,22]
[314385514,1708253438059,-125.51035688,0.00037186,27]
[314385515,1708253438075,-506.54208975,0.00037186,27]
[314385516,1708253438084,-500.0,0.00037186,2]
[314385517,1708253438093,-287.31177793,0.00037186,2]
[314385518,1708253438103,-500.0,0.00037186,2]
[314385519,1708253438112,-500.0,0.00037186,2]
[314385520,1708253438121,-500.0,0.00037186,2]
[314385521,1708253438130,-556.19457299,0.00037186,2]
[314385522,1708253438139,-666.0,0.00037186,2]
[314385523,1708253438148,-582.61268221,0.00037191,2]
[314385524,1708253438158,-582.61268221,0.000372,2]
[314385525,1708253438166,-582.61268221,0.00037201,2]
[314385526,1708253438175,-582.61268221,0.00037201,2]
[314385527,1708253438185,-582.61268221,0.00037201,2]
[314385528,1708253438194,-582.61268221,0.00037201,2]
[314385529,1708253438203,-582.61268221,0.00037201,2]
[314385530,1708253438212,-334.27640208,0.00037209,4]
[314385531,1708253438221,-1529.974,0.00037211,2]
[314385532,1708253438231,-2691.0,0.00037211,2]
[314385533,1708253438240,-953.0,0.00037211,2]
[314385534,1708253438250,-29.07708248,0.00037211,2]
[314385535,1708253438266,-812.92291752,0.00037211,2]
[314385536,1708253438276,-450.528,0.00037211,2]
[314385537,1708253438285,-216.0,0.00037211,2]
[314385538,1708253438295,-271.74218311,0.00037211,2]
[314385715,1708253441233,-11472.82112207,0.00037086,2]
[314385717,1708253441243,-2892.42654772,0.00037121,4]
[314385720,1708253441253,-983.25781689,0.00037211,2]
[314385722,1708253441263,-1950.0,0.00037211,2]
[314385724,1708253441272,-1231.0,0.00037211,2]
[314385726,1708253441282,-276.0,0.00037211,2]
[314385728,1708253441292,-1005.0,0.00037211,2]
[314385730,1708253441301,-429.0,0.00037211,2]
[314385732,1708253441310,-858.0,0.00037211,2]
[314385734,1708253441319,-216.84,0.00037211,2]
[314385736,1708253441329,-150.0,0.00037211,2]
[314385738,1708253441338,-350.013,0.00037211,2]
[314385740,1708253441348,-321.0,0.00037211,2]
[314385742,1708253441357,-343.0,0.00037211,2]
[314385744,1708253441367,-454.0,0.00037211,2]
[314385746,1708253441376,-150.0,0.00037211,2]
[314385748,1708253441386,-2929.0,0.00037211,2]
[314385750,1708253441395,-865.908,0.00037211,2]
[314385752,1708253441405,-4100.0,0.00037211,2]
[314385754,1708253441414,-2291.0,0.00037211,2]
[314385756,1708253441424,-19859.0,0.00037211,2]
[314385758,1708253441434,-8169.0,0.00037211,2]
[314385760,1708253441443,-1038.0,0.00037211,2]
[314385762,1708253441453,-205.918,0.00037211,2]
[314385764,1708253441463,-582.61268221,0.00037212,2]
[314385766,1708253441472,-500.0,0.00037231,2]
[314385768,1708253441482,-403.4,0.00037231,2]
[314385770,1708253441493,-500.0,0.00037231,2]
[314385773,1708253441502,-500.0,0.00037231,2]
[314385775,1708253441512,-500.0,0.00037231,2]
[314385777,1708253441521,-500.0,0.00037231,2]
[314385779,1708253441531,-582.61268221,0.00037239,2]
[314385781,1708253441541,-1452.3764821,0.00037249,2]
[314385783,1708253441550,-582.61268221,0.00037312,2]
[314385785,1708253441559,-582.61268221,0.00037312,2]
[314385786,1708253441569,-582.61268221,0.00037312,2]
[314385787,1708253441578,-8412.2923,0.00037322,2]
[314385788,1708253441588,-582.61268221,0.00037344,2]
[314385789,1708253441598,-582.61268221,0.00037344,2]
[314385790,1708253441608,-200.0,0.00037348,3]
[314385791,1708253441621,-177.48,0.00037348,2]
[314385792,1708253441630,-163.89,0.00037397,2]
[314385793,1708253441639,-232.70115777,0.000374,8]
[314385795,1708253441649,-582.61268221,0.00037407,2]
[314385797,1708253441658,-582.61268221,0.0003741,2]
[314385799,1708253441668,-1452.3764821,0.00037417,2]
[314385801,1708253441678,-3000.0,0.0003742,2]
[314385803,1708253441687,-154.73615782,0.00037422,2]
[314385805,1708253441697,-582.61268221,0.00037479,2]
[314385808,1708253441706,-582.61268221,0.0003748,2]
[314385810,1708253441715,-582.61268221,0.0003748,2]
[314385812,1708253441724,-582.61268221,0.0003748,2]
[314385814,1708253441733,-582.61268221,0.0003748,2]
[314385816,1708253441742,-582.61268221,0.00037487,2]
[314385818,1708253441751,-582.61268221,0.00037489,2]
[314385820,1708253441761,-582.61268221,0.00037489,2]
[314385822,1708253441770,-582.61268221,0.00037489,2]
[314385824,1708253441779,-582.61268221,0.00037489,2]
[314385826,1708253441789,-582.61268221,0.00037489,2]
[314385828,1708253441798,-582.61268221,0.00037489,2]
[314385830,1708253441810,-7118.22172667,0.0003749,10]
[314385832,1708253441824,-1513.51743798,0.0003749,10]
[314385834,1708253441834,-582.61268221,0.0003749,2]
[314385836,1708253441843,-582.61268221,0.0003749,2]
[314385838,1708253441853,-582.61268221,0.0003749,2]
[314385840,1708253441862,-582.61268221,0.0003749,2]
[314385842,1708253441872,-582.61268221,0.0003749,2]
[314385844,1708253441882,-200.0,0.00037497,3]
[314385847,1708253441894,-800.0,0.00037497,3]
[314385849,1708253441904,-200.0,0.00037497,10]
[314385851,1708253441913,-500.0,0.00037497,10]
[314385853,1708253441923,-200.0,0.00037497,10]
[314385855,1708253441932,-151.94,0.00037498,2]
[314385857,1708253441942,-500.0,0.00037499,2]
[314385859,1708253441951,-500.0,0.00037499,2]
[314385861,1708253441960,-500.0,0.00037499,2]
[314385863,1708253441970,-500.0,0.00037499,2]
[314385865,1708253441979,-306.3097445,0.00037499,2]
[314385867,1708253441989,-500.0,0.00037499,7]
[314385869,1708253441999,-500.0,0.00037499,2]
[314385871,1708253442009,-500.0,0.00037499,2]
[314385873,1708253442019,-500.0,0.00037499,2]
[314385875,1708253442030,-500.0,0.00037499,2]
[314385877,1708253442039,-500.0,0.00037499,2]
[314385879,1708253442049,-500.0,0.00037499,2]
[314385882,1708253442058,-500.0,0.00037499,2]
[314385884,1708253442068,-500.0,0.00037499,2]
[314385886,1708253442077,-503.12548228,0.00037499,2]
[314385888,1708253442086,-500.0,0.00037499,2]
[314385890,1708253442095,-403.06226009,0.00037499,2]
[314385892,1708253442104,-500.0,0.00037499,2]
[314385894,1708253442114,-500.0,0.00037499,2]
[314385896,1708253442123,-500.0,0.00037499,2]
[314385898,1708253442133,-500.0,0.00037499,2]
[314385900,1708253442142,-500.0,0.00037499,2]
[314385902,1708253442152,-500.0,0.00037499,2]
[314385904,1708253442161,-500.0,0.00037499,2]
[314385906,1708253442172,-500.0,0.00037499,2]
[314385908,1708253442181,-500.0,0.00037499,2]
[314385910,1708253442191,-1181.75,0.00037499,2]
[314385912,1708253442200,-500.0,0.00037499,2]
[314385914,1708253442210,-500.0,0.00037499,2]
[314385916,1708253442219,-500.0,0.00037499,2]
[314385918,1708253442228,-500.0,0.00037499,2]
[314385920,1708253442238,-231.71084409,0.00037499,2]
[314385922,1708253442247,-500.0,0.00037499,2]
[314385924,1708253442257,-396.55,0.00037499,2]
[314385926,1708253442266,-500.0,0.00037499,2]
[314385928,1708253442275,-585.52808545,0.00037499,2]
[314385930,1708253442285,-500.0,0.00037499,2]
[314385932,1708253442294,-500.0,0.00037499,2]
[314385934,1708253442305,-58815.75950783,0.000375,2]
[314385937,1708253442321,-17714.25879217,0.000375,2]
[314385939,1708253442330,-1603.6911,0.000375,2]
[314385941,1708253442341,-1548.8558,0.000375,2]
[314385943,1708253442350,-1233.10559495,0.00037518,10]
[314385945,1708253442360,-300.0,0.00037547,2]
[314385947,1708253442369,-150.0,0.00037567,2]
[314385949,1708253442379,-1233.10559495,0.00037589,10]
[314385951,1708253442388,-2466.2111899,0.0003759,10]
[314385953,1708253442398,-500.0,0.00037599,2]
[314385955,1708253442407,-500.0,0.00037599,2]
[314385957,1708253442417,-12294.7199,0.000376,2]
[314385959,1708253442427,-4539.6917,0.000376,2]
[314385961,1708253442436,-1000.0,0.000376,2]
[314385963,1708253442445,-952.5471,0.000376,2]
[314385965,1708253442455,-1041.32298743,0.000376,2]
[314385967,1708253442464,-696.16,0.000376,3]
[314385969,1708253442474,-177.0,0.00037617,2]
[314385971,1708253442484,-1233.10559495,0.00037662,10]
[314385973,1708253442493,-165.81,0.00037665,2]
[314385975,1708253442503,-914.02848667,0.0003768,10]
[314385978,1708253442515,-443.79993554,0.0003768,10]
[314385980,1708253442527,-508.13876161,0.0003768,10]
[314385983,1708253442545,-600.24400608,0.0003768,10]
[314385985,1708253442555,-2267.11205685,0.00037688,2]
[314385987,1708253442564,-1233.10559495,0.00037688,10]
[314385989,1708253442574,-2466.2111899,0.00037689,10]
[314385991,1708253442583,-1233.10559495,0.0003769,10]
[314385993,1708253442592,-6165.52797475,0.0003769,10]
[314385995,1708253442602,-8397.99,0.0003769,2]
[314385997,1708253442611,-8397.99,0.0003769,2]
[314385999,1708253442621,-8397.99,0.0003769,2]
[314386001,1708253442630,-1845.61571293,0.00037698,10]
[314386003,1708253442639,-153.59818801,0.00037698,2]
[314386005,1708253442648,-172.1128102,0.00037698,2]
[314386007,1708253442658,-500.0,0.00037698,2]
[314386010,1708253442667,-500.0,0.00037698,2]
[314386012,1708253442677,-500.0,0.00037698,2]
[314386014,1708253442686,-2732.5787,0.00037698,2]
[314386016,1708253442695,-322.9002,0.00037698,2]
[314386018,1708253442704,-500.0,0.00037699,7]
[314386020,1708253442713,-500.0,0.00037699,2]
[314386022,1708253442723,-500.0,0.00037699,2]
[314386024,1708253442732,-500.0,0.00037699,2]
[314386026,1708253442742,-166.63518821,0.00037699,2]
[314386030,1708253442767,-333.36481179,0.00037699,2]
[314386032,1708253442776,-275.09518821,0.00037699,2]
[314386035,1708253442793,-224.90481179,0.00037699,2]
[314386037,1708253442805,-500.0,0.00037699,2]
[314386039,1708253442814,-152.89518821,0.00037699,2]
[314386313,1708253445451,-153.1997826,0.00036918,2]
[314386315,1708253445462,-500.0,0.00037231,2]
[314386317,1708253445471,-14.28113937,0.00037499,4]
[314386322,1708253445507,-1729.94277221,0.00037499,4]
[314386324,1708253445518,-150.0,0.00037559,2]
[314386326,1708253445527,-500.0,0.00037698,2]
[314386328,1708253445536,-309.93521571,0.00037698,4]
[314386330,1708253445546,-347.10481179,0.00037699,2]
[314386332,1708253445555,-462.69874403,0.00037699,2]
[314386334,1708253445564,-500.0,0.00037699,2]
[314386336,1708253445573,-500.0,0.00037699,2]
[314386339,1708253445585,-500.0,0.00037699,2]
[314386341,1708253445594,-500.0,0.00037699,2]
[314386343,1708253445604,-500.0,0.00037699,2]
[314386345,1708253445615,-500.0,0.00037699,2]
[314386347,1708253445625,-1181.75,0.00037699,2]
[314386349,1708253445634,-1181.75,0.00037699,2]
[314386351,1708253445644,-500.0,0.00037699,2]
[314386353,1708253445653,-500.0,0.00037699,2]
[314386355,1708253445663,-500.0,0.00037699,2]
[314386357,1708253445672,-500.0,0.00037699,2]
[314386360,1708253445681,-154.63198929,0.00037699,7]
[314386363,1708253445690,-500.0,0.00037699,2]
[314386365,1708253445699,-500.0,0.00037699,2]
[314386368,1708253445709,-209.5520784,0.00037699,2]
[314386370,1708253445718,-500.0,0.00037699,2]
[314386372,1708253445727,-334.637057,0.00037699,2]
[314386374,1708253445737,-500.0,0.00037699,2]
[314386396,1708253445921,-500.0,0.00037699,2]
[314386398,1708253445931,-500.0,0.00037699,2]
[314386399,1708253445941,-500.0,0.00037699,2]
[314386400,1708253445951,-194.09055051,0.00037699,2]
[314386401,1708253445960,-500.0,0.00037699,2]
[314386402,1708253445969,-500.0,0.00037699,2]
[314386403,1708253445978,-570.29,0.00037699,2]
[314386404,1708253445988,-5000.0,0.000377,3]
[314386405,1708253445997,-7519.74034664,0.000377,2]
[314386406,1708253446015,-237480.25965336,0.000377,2]
[314386407,1708253446024,-39488.7513,0.000377,2]
[314386408,1708253446033,-100000.0,0.000377,2]
[314386409,1708253446043,-696.16,0.000377,3]
[314386410,1708253446053,-1275.34964888,0.000377,2]
[314386411,1708253446062,-1840.43588767,0.000377,2]
[314386412,1708253446071,-194.58535613,0.000377,2]
[314386413,1708253446081,-300.0,0.00037702,2]
[314386414,1708253446090,-1845.61571287,0.00037716,11]
[314386415,1708253446099,-1845.61571287,0.00037735,11]